[Event "Titled Tuesday Blitz June 07 Early 2022"]
[White "Xu, Yi"]
[Black "Krysa, Leandro"]
[WhiteFideId "8605564"]
[BlackFideId "116807"]
[WhiteElo "2471"]
[BlackElo "2490"]
[Result "1-0"]
[Round "05"]
[TimeControl "180+1"]
[Date "2022.06.07"]
[WhiteClock "0:00:11"]
[BlackClock "0:00:02"]

1. e4 {[%clk 0:03:00]}  e5 {[%clk 0:02:59]} 2. Nf3 {[%clk 0:03:00]}  Nf6 {[%clk 0:03:00]} 3. Nxe5 {[%clk 0:02:52]}  d6 {[%clk 0:02:59]} 4. Nf3 {[%clk 0:02:53]}  Nxe4 {[%clk 0:02:59]} 5. d4 {[%clk 0:02:54]}  d5 {[%clk 0:02:59]} 6. Bd3 {[%clk 0:02:54]}  Be7 {[%clk 0:02:56]} 7. O-O {[%clk 0:02:54]}  Nc6 {[%clk 0:02:57]} 8. Re1 {[%clk 0:02:49]}  Bf5 {[%clk 0:02:53]} 9. Nbd2 {[%clk 0:02:33]}  Nxd2 {[%clk 0:02:44]} 10. Qxd2 {[%clk 0:02:30]}  Bxd3 {[%clk 0:02:43]} 11. Qxd3 {[%clk 0:02:30]}  O-O {[%clk 0:02:43]} 12. c3 {[%clk 0:02:26]}  Qd7 {[%clk 0:02:41]} 13. Bf4 {[%clk 0:02:25]}  a6 {[%clk 0:02:38]} 14. Re2 {[%clk 0:02:24]}  Rae8 {[%clk 0:02:36]} 15. Rae1 {[%clk 0:02:25]}  Bd8 {[%clk 0:02:35]} 16. h3 {[%clk 0:02:13]}  h6 {[%clk 0:02:27]} 17. a4 {[%clk 0:02:00]}  Rxe2 {[%clk 0:02:24]} 18. Rxe2 {[%clk 0:01:55]}  Re8 {[%clk 0:02:23]} 19. b4 {[%clk 0:01:53]}  Rxe2 {[%clk 0:02:18]} 20. Qxe2 {[%clk 0:01:53]}  Qe6 {[%clk 0:02:18]} 21. Qxe6 {[%clk 0:01:41]}  fxe6 {[%clk 0:02:18]} 22. a5 {[%clk 0:01:36]}  Na7 {[%clk 0:02:08]} 23. Ne1 {[%clk 0:00:39]}  Nb5 {[%clk 0:02:04]} 24. Bd2 {[%clk 0:00:39]}  Be7 {[%clk 0:01:44]} 25. Nd3 {[%clk 0:00:38]}  Bd6 {[%clk 0:01:44]} 26. Kf1 {[%clk 0:00:37]}  b6 {[%clk 0:01:38]} 27. g4 {[%clk 0:00:32]}  Na3 {[%clk 0:01:26]} 28. Ke2 {[%clk 0:00:30]}  bxa5 {[%clk 0:01:21]} 29. bxa5 {[%clk 0:00:29]}  Nc4 {[%clk 0:01:21]} 30. Nb4 {[%clk 0:00:27]}  Bxb4 {[%clk 0:01:21]} 31. cxb4 {[%clk 0:00:27]}  c6 {[%clk 0:01:19]} 32. h4 {[%clk 0:00:26]}  Kf7 {[%clk 0:01:03]} 33. Bc1 {[%clk 0:00:26]}  Nd6 {[%clk 0:00:43]} 34. f3 {[%clk 0:00:25]}  h5 {[%clk 0:00:42]} 35. Bg5 {[%clk 0:00:20]}  g6 {[%clk 0:00:36]} 36. Kd3 {[%clk 0:00:17]}  Ke8 {[%clk 0:00:34]} 37. Ke3 {[%clk 0:00:16]}  Kf7 {[%clk 0:00:32]} 38. Kd3 {[%clk 0:00:16]}  Nc4 {[%clk 0:00:29]} 39. Bc1 {[%clk 0:00:15]}  e5 {[%clk 0:00:21]} 40. gxh5 {[%clk 0:00:13]}  gxh5 {[%clk 0:00:21]} 41. dxe5 {[%clk 0:00:13]}  Nxe5+ {[%clk 0:00:20]} 42. Kd4 {[%clk 0:00:12]}  Nxf3+ {[%clk 0:00:20]} 43. Kc5 {[%clk 0:00:12]}  d4 {[%clk 0:00:16]} 44. Kxc6 {[%clk 0:00:10]}  d3 {[%clk 0:00:13]} 45. Kb6 {[%clk 0:00:11]}  d2 {[%clk 0:00:09]} 46. Bxd2 {[%clk 0:00:11]}  Nxd2 {[%clk 0:00:10]} 47. Kxa6 {[%clk 0:00:12]}  Ke6 {[%clk 0:00:11]} 48. Kb7 {[%clk 0:00:11]}  Ne4 {[%clk 0:00:06]} 49. a6 {[%clk 0:00:11]}  Nd6+ {[%clk 0:00:06]} 50. Kc6 {[%clk 0:00:11]}  Nc8 {[%clk 0:00:03]} 51. b5 {[%clk 0:00:11]}  Na7+ {[%clk 0:00:03]} 52. Kb6 {[%clk 0:00:11]}  Nc8+ {[%clk 0:00:03]} 53. Kc7 {[%clk 0:00:11]}  Na7 {[%clk 0:00:03]} 54. b6 {[%clk 0:00:11]}  Nb5+ {[%clk 0:00:04]} 55. Kc6 {[%clk 0:00:11]}  Nd4+ {[%clk 0:00:04]} 56. Kb7 {[%clk 0:00:10]}  Kd7 {[%clk 0:00:02]} 57. a7 {[%clk 0:00:11]} 1-0


[Site "https://www.chess.com"]

[Event "Titled Tuesday Blitz June 07 Early 2022"]
[White "Akbas, Umut Ata"]
[Black "Livaic, Leon"]
[WhiteFideId "44572646"]
[BlackFideId "14531534"]
[WhiteElo "1590"]
[BlackElo "2540"]
[Result "0-1"]
[Round "06"]
[TimeControl "180+1"]
[Date "2022.06.07"]
[WhiteClock "0:00:18"]
[BlackClock "0:01:33"]

1. d4 {[%clk 0:03:00]}  e6 {[%clk 0:02:59]} 2. c4 {[%clk 0:03:00]}  Nf6 {[%clk 0:03:00]} 3. Nf3 {[%clk 0:03:01]}  c5 {[%clk 0:03:00]} 4. d5 {[%clk 0:02:58]}  d6 {[%clk 0:03:00]} 5. Nc3 {[%clk 0:02:57]}  exd5 {[%clk 0:03:01]} 6. cxd5 {[%clk 0:02:58]}  g6 {[%clk 0:03:01]} 7. e4 {[%clk 0:02:57]}  a6 {[%clk 0:03:01]} 8. a4 {[%clk 0:02:55]}  Bg4 {[%clk 0:03:02]} 9. Be2 {[%clk 0:02:52]}  Bxf3 {[%clk 0:03:02]} 10. Bxf3 {[%clk 0:02:52]}  Nbd7 {[%clk 0:03:03]} 11. O-O {[%clk 0:02:47]}  Bg7 {[%clk 0:03:03]} 12. Bf4 {[%clk 0:02:46]}  Qe7 {[%clk 0:03:04]} 13. Re1 {[%clk 0:02:42]}  O-O {[%clk 0:03:04]} 14. h3 {[%clk 0:02:42]}  Ne8 {[%clk 0:03:03]} 15. Qd2 {[%clk 0:02:35]}  Nc7 {[%clk 0:03:03]} 16. a5 {[%clk 0:02:34]}  Rab8 {[%clk 0:03:03]} 17. Be2 {[%clk 0:02:23]}  b5 {[%clk 0:03:03]} 18. axb6 {[%clk 0:02:23]}  Rxb6 {[%clk 0:03:03]} 19. Ra2 {[%clk 0:02:22]}  Rfb8 {[%clk 0:03:03]} 20. Bc4 {[%clk 0:02:22]}  Bd4 {[%clk 0:02:57]} 21. Re2 {[%clk 0:02:06]}  Rb4 {[%clk 0:02:43]} 22. b3 {[%clk 0:02:01]}  Qf6 {[%clk 0:02:40]} 23. Na4 {[%clk 0:01:55]}  Ne5 {[%clk 0:02:30]} 24. Bxe5 {[%clk 0:01:47]}  Bxe5 {[%clk 0:02:26]} 25. g3 {[%clk 0:01:44]}  g5 {[%clk 0:02:16]} 26. Kg2 {[%clk 0:01:41]}  h5 {[%clk 0:02:15]} 27. Re3 {[%clk 0:01:34]}  Nb5 {[%clk 0:02:05]} 28. Rf3 {[%clk 0:01:22]}  Qg6 {[%clk 0:02:05]} 29. Qd3 {[%clk 0:00:57]}  Nd4 {[%clk 0:02:03]} 30. Re3 {[%clk 0:00:58]}  g4 {[%clk 0:01:55]} 31. hxg4 {[%clk 0:00:55]}  hxg4 {[%clk 0:01:55]} 32. Nc3 {[%clk 0:00:48]}  Nxb3 {[%clk 0:01:50]} 33. Rxa6 {[%clk 0:00:39]}  Nd4 {[%clk 0:01:43]} 34. Ne2 {[%clk 0:00:21]}  Nf3 {[%clk 0:01:43]} 35. Ng1 {[%clk 0:00:17]}  Nxg1 {[%clk 0:01:33]} 36. Kxg1 {[%clk 0:00:18]}  Rb1+ {[%clk 0:01:33]} 0-1


[Site "https://www.chess.com"]

[Event "Titled Tuesday Blitz June 07 Early 2022"]
[White "Al-Tarboush, Ward"]
[Black "Harsha Bharathakoti"]
[WhiteFideId "7601450"]
[BlackFideId "5078776"]
[WhiteElo "2249"]
[BlackElo "2575"]
[Result "1-0"]
[Round "06"]
[TimeControl "180+1"]
[Date "2022.06.07"]
[WhiteClock "0:00:43"]
[BlackClock "0:00:01"]

1. e4 {[%clk 0:02:58]}  c6 {[%clk 0:02:58]} 2. Nf3 {[%clk 0:02:58]}  d5 {[%clk 0:02:58]} 3. Nc3 {[%clk 0:02:58]}  Bg4 {[%clk 0:02:59]} 4. h3 {[%clk 0:02:58]}  Bxf3 {[%clk 0:02:59]} 5. Qxf3 {[%clk 0:02:59]}  e6 {[%clk 0:03:00]} 6. d3 {[%clk 0:03:00]}  Bc5 {[%clk 0:02:59]} 7. Be2 {[%clk 0:02:58]}  Ne7 {[%clk 0:02:58]} 8. g4 {[%clk 0:02:58]}  Nd7 {[%clk 0:02:53]} 9. Bd2 {[%clk 0:02:52]}  a5 {[%clk 0:02:51]} 10. Qg3 {[%clk 0:02:51]}  a4 {[%clk 0:02:49]} 11. a3 {[%clk 0:02:51]}  Qb6 {[%clk 0:02:45]} 12. Rb1 {[%clk 0:02:42]}  d4 {[%clk 0:02:45]} 13. Nd1 {[%clk 0:02:39]}  Bxa3 {[%clk 0:02:45]} 14. O-O {[%clk 0:02:37]}  Bb4 {[%clk 0:02:36]} 15. c3 {[%clk 0:02:34]}  Bc5 {[%clk 0:02:36]} 16. Kg2 {[%clk 0:02:28]}  e5 {[%clk 0:02:33]} 17. f4 {[%clk 0:02:26]}  exf4 {[%clk 0:02:34]} 18. Bxf4 {[%clk 0:02:23]}  O-O {[%clk 0:02:27]} 19. Nf2 {[%clk 0:02:19]}  Ng6 {[%clk 0:02:25]} 20. Bc7 {[%clk 0:02:16]}  Qa7 {[%clk 0:02:22]} 21. h4 {[%clk 0:02:16]}  Rae8 {[%clk 0:01:52]} 22. g5 {[%clk 0:02:15]}  b6 {[%clk 0:01:42]} 23. Ng4 {[%clk 0:02:05]}  Rc8 {[%clk 0:01:36]} 24. Bd6 {[%clk 0:02:05]}  Bxd6 {[%clk 0:01:21]} 25. Qxd6 {[%clk 0:02:06]}  dxc3 {[%clk 0:01:19]} 26. bxc3 {[%clk 0:02:07]}  Qc7 {[%clk 0:01:19]} 27. e5 {[%clk 0:01:40]}  Nxh4+ {[%clk 0:00:52]} 28. Kh3 {[%clk 0:01:36]}  Ng6 {[%clk 0:00:52]} 29. d4 {[%clk 0:01:33]}  b5 {[%clk 0:00:41]} 30. Bd3 {[%clk 0:01:07]}  Qxd6 {[%clk 0:00:36]} 31. exd6 {[%clk 0:01:07]}  Nb6 {[%clk 0:00:36]} 32. Ne5 {[%clk 0:01:01]}  Nxe5 {[%clk 0:00:26]} 33. dxe5 {[%clk 0:01:02]}  Rfe8 {[%clk 0:00:23]} 34. Rfe1 {[%clk 0:01:02]}  g6 {[%clk 0:00:21]} 35. c4 {[%clk 0:01:01]}  Nd7 {[%clk 0:00:17]} 36. cxb5 {[%clk 0:01:00]}  Rxe5 {[%clk 0:00:15]} 37. Rxe5 {[%clk 0:01:00]}  Nxe5 {[%clk 0:00:15]} 38. Re1 {[%clk 0:00:46]}  Nxd3 {[%clk 0:00:05]} 39. d7 {[%clk 0:00:45]}  Rf8 {[%clk 0:00:03]} 40. Re8 {[%clk 0:00:45]}  Nf4+ {[%clk 0:00:04]} 41. Kg4 {[%clk 0:00:46]}  Ne6 {[%clk 0:00:05]} 42. bxc6 {[%clk 0:00:46]}  a3 {[%clk 0:00:05]} 43. Rxf8+ {[%clk 0:00:42]}  Kxf8 {[%clk 0:00:03]} 44. c7 {[%clk 0:00:42]}  Nxc7 {[%clk 0:00:03]} 45. d8=Q+ {[%clk 0:00:42]}  Ne8 {[%clk 0:00:04]} 46. Qa5 {[%clk 0:00:42]}  Kg8 {[%clk 0:00:01]} 47. Qxa3 {[%clk 0:00:43]} 1-0


[Site "https://www.chess.com"]

[Event "Titled Tuesday Blitz June 07 Early 2022"]
[White "Alvarado Diaz, Alejandro"]
[Black "Balabayeva, Xeniya"]
[WhiteFideId "2276119"]
[BlackFideId "13719688"]
[WhiteElo "2438"]
[BlackElo "1941"]
[Result "1-0"]
[Round "06"]
[TimeControl "180+1"]
[Date "2022.06.07"]
[WhiteClock "0:00:36"]
[BlackClock "0:00:01"]

1. d4 {[%clk 0:03:00]}  d5 {[%clk 0:02:58]} 2. c4 {[%clk 0:03:00]}  e6 {[%clk 0:02:58]} 3. Nc3 {[%clk 0:02:59]}  Nf6 {[%clk 0:02:56]} 4. cxd5 {[%clk 0:02:57]}  exd5 {[%clk 0:02:55]} 5. Bg5 {[%clk 0:02:57]}  Be7 {[%clk 0:02:49]} 6. e3 {[%clk 0:02:56]}  c6 {[%clk 0:02:43]} 7. Bd3 {[%clk 0:02:54]}  Be6 {[%clk 0:02:38]} 8. Nge2 {[%clk 0:02:50]}  h6 {[%clk 0:02:34]} 9. Bh4 {[%clk 0:02:49]}  Nbd7 {[%clk 0:02:31]} 10. O-O {[%clk 0:02:48]}  O-O {[%clk 0:02:10]} 11. Qc2 {[%clk 0:02:44]}  Re8 {[%clk 0:02:09]} 12. Rad1 {[%clk 0:02:41]}  Nf8 {[%clk 0:02:04]} 13. f3 {[%clk 0:02:38]}  Qb6 {[%clk 0:01:50]} 14. Bf2 {[%clk 0:02:35]}  Rac8 {[%clk 0:01:46]} 15. Kh1 {[%clk 0:02:33]}  c5 {[%clk 0:01:37]} 16. Na4 {[%clk 0:02:27]}  Qa5 {[%clk 0:01:34]} 17. dxc5 {[%clk 0:02:25]}  Bxc5 {[%clk 0:01:29]} 18. Nxc5 {[%clk 0:02:23]}  Rxc5 {[%clk 0:01:27]} 19. Qb1 {[%clk 0:02:23]}  Rcc8 {[%clk 0:01:22]} 20. Nd4 {[%clk 0:02:21]}  N8d7 {[%clk 0:01:12]} 21. b4 {[%clk 0:02:06]}  Qb6 {[%clk 0:00:39]} 22. Nb5 {[%clk 0:01:58]}  Ne5 {[%clk 0:00:22]} 23. e4 {[%clk 0:01:43]}  Qd8 {[%clk 0:00:20]} 24. Nxa7 {[%clk 0:01:40]}  Nxd3 {[%clk 0:00:19]} 25. Qxd3 {[%clk 0:01:38]}  Ra8 {[%clk 0:00:17]} 26. Nb5 {[%clk 0:01:37]}  Qd7 {[%clk 0:00:16]} 27. e5 {[%clk 0:01:35]}  Nh7 {[%clk 0:00:14]} 28. Nd6 {[%clk 0:01:30]}  Red8 {[%clk 0:00:13]} 29. f4 {[%clk 0:01:30]}  g6 {[%clk 0:00:10]} 30. Bb6 {[%clk 0:01:26]}  Rf8 {[%clk 0:00:08]} 31. Rf2 {[%clk 0:01:11]}  f5 {[%clk 0:00:03]} 32. b5 {[%clk 0:00:46]}  Kg7 {[%clk 0:00:01]} 33. Rc1 {[%clk 0:00:43]}  Kg8 {[%clk 0:00:01]} 34. Rc7 {[%clk 0:00:43]}  Qd8 {[%clk 0:00:02]} 35. Qg3 {[%clk 0:00:39]}  g5 {[%clk 0:00:01]} 36. Qh3 {[%clk 0:00:36]} 1-0


[Site "https://www.chess.com"]

[Event "Titled Tuesday Blitz June 07 Early 2022"]
[White "Bluebaum, Matthias"]
[Black "Volkov, Maksim"]
[WhiteFideId "24651516"]
[BlackFideId "54123070"]
[WhiteElo "2556"]
[BlackElo "2155"]
[Result "1-0"]
[Round "06"]
[TimeControl "180+1"]
[Date "2022.06.07"]
[WhiteClock "0:01:27"]
[BlackClock "0:00:42"]

1. d4 {[%clk 0:03:00]}  d5 {[%clk 0:03:00]} 2. c4 {[%clk 0:03:01]}  e6 {[%clk 0:03:00]} 3. Nc3 {[%clk 0:03:01]}  c6 {[%clk 0:03:01]} 4. Nf3 {[%clk 0:03:00]}  dxc4 {[%clk 0:03:01]} 5. e4 {[%clk 0:03:01]}  b5 {[%clk 0:03:01]} 6. Qc2 {[%clk 0:03:01]}  Bb7 {[%clk 0:02:59]} 7. Be2 {[%clk 0:03:02]}  Nf6 {[%clk 0:02:59]} 8. O-O {[%clk 0:03:02]}  Nbd7 {[%clk 0:02:59]} 9. b3 {[%clk 0:03:02]}  b4 {[%clk 0:02:55]} 10. e5 {[%clk 0:03:03]}  cxb3 {[%clk 0:02:43]} 11. axb3 {[%clk 0:03:00]}  Nd5 {[%clk 0:02:42]} 12. Nxd5 {[%clk 0:02:52]}  cxd5 {[%clk 0:02:40]} 13. Bg5 {[%clk 0:02:52]}  Qb6 {[%clk 0:02:37]} 14. Rfc1 {[%clk 0:02:52]}  h6 {[%clk 0:02:37]} 15. Bd2 {[%clk 0:02:44]}  Be7 {[%clk 0:02:28]} 16. Qc7 {[%clk 0:02:43]}  Rc8 {[%clk 0:01:52]} 17. Qxb6 {[%clk 0:02:30]}  axb6 {[%clk 0:01:53]} 18. Bb5 {[%clk 0:02:06]}  Kd8 {[%clk 0:01:50]} 19. Ra7 {[%clk 0:02:05]}  Rxc1+ {[%clk 0:01:48]} 20. Bxc1 {[%clk 0:02:05]}  Bc8 {[%clk 0:01:48]} 21. Ne1 {[%clk 0:01:54]}  f6 {[%clk 0:01:44]} 22. f4 {[%clk 0:01:48]}  g5 {[%clk 0:01:37]} 23. Nd3 {[%clk 0:01:47]}  fxe5 {[%clk 0:01:05]} 24. fxe5 {[%clk 0:01:45]}  Bf8 {[%clk 0:00:55]} 25. Bd2 {[%clk 0:01:42]}  Rh7 {[%clk 0:00:55]} 26. Bxb4 {[%clk 0:01:29]}  Nf6 {[%clk 0:00:44]} 27. exf6 {[%clk 0:01:27]}  Rxa7 {[%clk 0:00:42]} 28. Bxf8 {[%clk 0:01:27]} 1-0


[Site "https://www.chess.com"]

[Event "Titled Tuesday Blitz June 07 Early 2022"]
[White "Chigaev, Maksim"]
[Black "Svane, Rasmus"]
[WhiteFideId "4108116"]
[BlackFideId "4657101"]
[WhiteElo "2457"]
[BlackElo "2674"]
[Result "1/2-1/2"]
[Round "06"]
[TimeControl "180+1"]
[Date "2022.06.07"]
[WhiteClock "0:00:23"]
[BlackClock "0:00:27"]

1. d4 {[%clk 0:03:00]}  Nf6 {[%clk 0:02:59]} 2. c4 {[%clk 0:03:01]}  e6 {[%clk 0:03:00]} 3. Nf3 {[%clk 0:03:01]}  d5 {[%clk 0:03:00]} 4. g3 {[%clk 0:03:02]}  Bb4+ {[%clk 0:02:58]} 5. Nc3 {[%clk 0:03:00]}  O-O {[%clk 0:02:57]} 6. Bg2 {[%clk 0:02:59]}  dxc4 {[%clk 0:02:58]} 7. O-O {[%clk 0:02:56]}  Nc6 {[%clk 0:02:58]} 8. Qa4 {[%clk 0:02:51]}  Rb8 {[%clk 0:02:57]} 9. Rd1 {[%clk 0:02:47]}  Nd5 {[%clk 0:02:51]} 10. Qc2 {[%clk 0:02:47]}  Be7 {[%clk 0:02:49]} 11. e4 {[%clk 0:02:42]}  Ncb4 {[%clk 0:02:48]} 12. Qe2 {[%clk 0:02:30]}  Nxc3 {[%clk 0:02:48]} 13. bxc3 {[%clk 0:02:28]}  Nd3 {[%clk 0:02:49]} 14. a4 {[%clk 0:02:18]}  c5 {[%clk 0:02:44]} 15. Be3 {[%clk 0:02:15]}  cxd4 {[%clk 0:02:40]} 16. Bxd4 {[%clk 0:02:10]}  b6 {[%clk 0:02:28]} 17. Ne5 {[%clk 0:01:27]}  Qc7 {[%clk 0:02:27]} 18. Nxc4 {[%clk 0:01:21]}  Ba6 {[%clk 0:01:56]} 19. Ne5 {[%clk 0:01:06]}  Nc5 {[%clk 0:01:45]} 20. Qg4 {[%clk 0:01:06]}  Nb3 {[%clk 0:01:01]} 21. Nc6 {[%clk 0:00:37]}  Nxd4 {[%clk 0:01:01]} 22. Nxe7+ {[%clk 0:00:34]}  Qxe7 {[%clk 0:01:02]} 23. cxd4 {[%clk 0:00:34]}  Rfd8 {[%clk 0:01:02]} 24. d5 {[%clk 0:00:34]}  exd5 {[%clk 0:01:02]} 25. exd5 {[%clk 0:00:35]}  Be2 {[%clk 0:00:49]} 26. Re1 {[%clk 0:00:35]}  Bxg4 {[%clk 0:00:49]} 27. Rxe7 {[%clk 0:00:36]}  Rd7 {[%clk 0:00:50]} 28. d6 {[%clk 0:00:22]}  Kf8 {[%clk 0:00:33]} 29. Rae1 {[%clk 0:00:23]}  Rxd6 {[%clk 0:00:27]} 30. Rxa7 {[%clk 0:00:23]} 1/2-1/2


[Site "https://www.chess.com"]

[Event "Titled Tuesday Blitz June 07 Early 2022"]
[White "Dubov, Daniil"]
[Black "Le, Tuan Minh"]
[WhiteFideId "24126055"]
[BlackFideId "12401153"]
[WhiteElo "2791"]
[BlackElo "2530"]
[Result "1/2-1/2"]
[Round "06"]
[TimeControl "180+1"]
[Date "2022.06.07"]
[WhiteClock "0:00:05"]
[BlackClock "0:00:10"]

1. c4 {[%clk 0:03:00]}  c6 {[%clk 0:02:58]} 2. Nf3 {[%clk 0:02:59]}  d5 {[%clk 0:02:58]} 3. g3 {[%clk 0:02:59]}  Nf6 {[%clk 0:02:57]} 4. Bg2 {[%clk 0:03:00]}  g6 {[%clk 0:02:55]} 5. b3 {[%clk 0:02:59]}  Bg7 {[%clk 0:02:56]} 6. Bb2 {[%clk 0:03:00]}  O-O {[%clk 0:02:56]} 7. O-O {[%clk 0:03:00]}  Bg4 {[%clk 0:02:57]} 8. d3 {[%clk 0:02:58]}  Nbd7 {[%clk 0:02:54]} 9. Nbd2 {[%clk 0:02:58]}  a5 {[%clk 0:02:53]} 10. h3 {[%clk 0:02:57]}  Bxf3 {[%clk 0:02:54]} 11. Nxf3 {[%clk 0:02:58]}  a4 {[%clk 0:02:54]} 12. Qc2 {[%clk 0:02:58]}  Qb6 {[%clk 0:02:37]} 13. Bc3 {[%clk 0:02:54]}  axb3 {[%clk 0:02:23]} 14. axb3 {[%clk 0:02:51]}  Rfe8 {[%clk 0:02:23]} 15. Qb2 {[%clk 0:02:24]}  Nh5 {[%clk 0:02:13]} 16. d4 {[%clk 0:02:01]}  Nhf6 {[%clk 0:01:49]} 17. Nd2 {[%clk 0:01:59]}  Qc7 {[%clk 0:01:43]} 18. Rfc1 {[%clk 0:01:50]}  Qd6 {[%clk 0:01:40]} 19. e3 {[%clk 0:01:41]}  h5 {[%clk 0:01:38]} 20. b4 {[%clk 0:01:27]}  Qe6 {[%clk 0:01:32]} 21. b5 {[%clk 0:01:21]}  Bh6 {[%clk 0:01:21]} 22. Rxa8 {[%clk 0:01:15]}  Rxa8 {[%clk 0:01:20]} 23. Re1 {[%clk 0:01:15]}  Ne4 {[%clk 0:01:07]} 24. Nxe4 {[%clk 0:01:08]}  dxe4 {[%clk 0:01:08]} 25. bxc6 {[%clk 0:00:46]}  bxc6 {[%clk 0:01:09]} 26. Rd1 {[%clk 0:00:45]}  Qxc4 {[%clk 0:01:04]} 27. Bxe4 {[%clk 0:00:42]}  Nf6 {[%clk 0:00:58]} 28. Bf3 {[%clk 0:00:36]}  Ra2 {[%clk 0:00:52]} 29. Qb4 {[%clk 0:00:36]}  Qe6 {[%clk 0:00:51]} 30. d5 {[%clk 0:00:35]}  cxd5 {[%clk 0:00:27]} 31. Qb8+ {[%clk 0:00:26]}  Bf8 {[%clk 0:00:22]} 32. Qb3 {[%clk 0:00:23]}  Ra8 {[%clk 0:00:14]} 33. Bxf6 {[%clk 0:00:21]}  Qxf6 {[%clk 0:00:15]} 34. Bxd5 {[%clk 0:00:20]}  Rc8 {[%clk 0:00:14]} 35. Kg2 {[%clk 0:00:18]}  e6 {[%clk 0:00:14]} 36. Bf3 {[%clk 0:00:17]}  h4 {[%clk 0:00:14]} 37. g4 {[%clk 0:00:17]}  Qe5 {[%clk 0:00:15]} 38. Qb7 {[%clk 0:00:12]}  Rc7 {[%clk 0:00:15]} 39. Qe4 {[%clk 0:00:12]}  Qf6 {[%clk 0:00:14]} 40. Qf4 {[%clk 0:00:12]}  Qxf4 {[%clk 0:00:12]} 41. exf4 {[%clk 0:00:13]}  Rc2 {[%clk 0:00:12]} 42. Be4 {[%clk 0:00:11]}  Rc4 {[%clk 0:00:12]} 43. Kf3 {[%clk 0:00:09]}  Bc5 {[%clk 0:00:12]} 44. f5 {[%clk 0:00:09]}  gxf5 {[%clk 0:00:09]} 45. gxf5 {[%clk 0:00:10]}  Kg7 {[%clk 0:00:08]} 46. fxe6 {[%clk 0:00:09]}  fxe6 {[%clk 0:00:09]} 47. Rg1+ {[%clk 0:00:08]}  Kf7 {[%clk 0:00:08]} 48. Rg4 {[%clk 0:00:09]}  Rc3+ {[%clk 0:00:07]} 49. Kg2 {[%clk 0:00:09]}  Be7 {[%clk 0:00:06]} 50. Rf4+ {[%clk 0:00:08]}  Bf6 {[%clk 0:00:07]} 51. Rf3 {[%clk 0:00:08]}  Rc5 {[%clk 0:00:07]} 52. Rd3 {[%clk 0:00:07]}  Ke7 {[%clk 0:00:08]} 53. Kf3 {[%clk 0:00:07]}  Rg5 {[%clk 0:00:08]} 54. Rb3 {[%clk 0:00:07]}  Rc5 {[%clk 0:00:08]} 55. Rb7+ {[%clk 0:00:07]}  Kd6 {[%clk 0:00:06]} 56. Rb6+ {[%clk 0:00:08]}  Ke7 {[%clk 0:00:06]} 57. Rb7+ {[%clk 0:00:06]}  Kf8 {[%clk 0:00:07]} 58. Rb6 {[%clk 0:00:07]}  Re5 {[%clk 0:00:03]} 59. Kf4 {[%clk 0:00:06]}  Kg7 {[%clk 0:00:02]} 60. Bf3 {[%clk 0:00:06]}  Ra5 {[%clk 0:00:01]} 61. Rxe6 {[%clk 0:00:04]}  Ra4+ {[%clk 0:00:02]} 62. Be4 {[%clk 0:00:03]}  Ra5 {[%clk 0:00:02]} 63. Rc6 {[%clk 0:00:03]}  Kf8 {[%clk 0:00:02]} 64. f3 {[%clk 0:00:03]}  Kg7 {[%clk 0:00:02]} 65. Kg4 {[%clk 0:00:03]}  Kf7 {[%clk 0:00:02]} 66. f4 {[%clk 0:00:04]}  Ra4 {[%clk 0:00:02]} 67. Bd5+ {[%clk 0:00:03]}  Kg7 {[%clk 0:00:03]} 68. Kf5 {[%clk 0:00:04]}  Bb2 {[%clk 0:00:03]} 69. Rg6+ {[%clk 0:00:04]}  Kf8 {[%clk 0:00:03]} 70. Rg4 {[%clk 0:00:03]}  Ra5 {[%clk 0:00:03]} 71. Ke6 {[%clk 0:00:03]}  Ra6+ {[%clk 0:00:03]} 72. Kd7 {[%clk 0:00:03]}  Ra7+ {[%clk 0:00:04]} 73. Kd6 {[%clk 0:00:03]}  Ra6+ {[%clk 0:00:04]} 74. Kd7 {[%clk 0:00:03]}  Ra7+ {[%clk 0:00:05]} 75. Kc6 {[%clk 0:00:03]}  Ra6+ {[%clk 0:00:05]} 76. Kb5 {[%clk 0:00:04]}  Rh6 {[%clk 0:00:06]} 77. Kc5 {[%clk 0:00:03]}  Ke7 {[%clk 0:00:06]} 78. Kc4 {[%clk 0:00:03]}  Ba3 {[%clk 0:00:06]} 79. Kd3 {[%clk 0:00:03]}  Bd6 {[%clk 0:00:06]} 80. Ke4 {[%clk 0:00:04]}  Kf6 {[%clk 0:00:06]} 81. Rg8 {[%clk 0:00:03]}  Rh7 {[%clk 0:00:06]} 82. Re8 {[%clk 0:00:03]}  Re7+ {[%clk 0:00:07]} 83. Rxe7 {[%clk 0:00:03]}  Bxe7 {[%clk 0:00:07]} 84. Kf3 {[%clk 0:00:04]}  Kg7 {[%clk 0:00:08]} 85. Be4 {[%clk 0:00:04]}  Bd8 {[%clk 0:00:09]} 86. Kg4 {[%clk 0:00:05]}  Bf6 {[%clk 0:00:10]} 87. Bf3 {[%clk 0:00:05]} 1/2-1/2


[Site "https://www.chess.com"]

[Event "Titled Tuesday Blitz June 07 Early 2022"]
[White "Durarbayli, Vasif"]
[Black "Abarca Gonzalez, Nicolas"]
[WhiteFideId "13402935"]
[BlackFideId "3409422"]
[WhiteElo "2528"]
[BlackElo "2504"]
[Result "1-0"]
[Round "06"]
[TimeControl "180+1"]
[Date "2022.06.07"]
[WhiteClock "0:01:08"]
[BlackClock "0:01:27"]

1. e4 {[%clk 0:03:00]}  c5 {[%clk 0:02:44]} 2. Nf3 {[%clk 0:03:00]}  d6 {[%clk 0:02:44]} 3. Bb5+ {[%clk 0:03:01]}  Bd7 {[%clk 0:02:43]} 4. a4 {[%clk 0:03:01]}  Nc6 {[%clk 0:02:30]} 5. O-O {[%clk 0:02:59]}  g6 {[%clk 0:02:30]} 6. c3 {[%clk 0:02:55]}  a6 {[%clk 0:02:28]} 7. Bc4 {[%clk 0:02:45]}  Bg7 {[%clk 0:02:27]} 8. d4 {[%clk 0:02:40]}  cxd4 {[%clk 0:02:28]} 9. cxd4 {[%clk 0:02:40]}  Nf6 {[%clk 0:02:24]} 10. Nc3 {[%clk 0:02:38]}  O-O {[%clk 0:02:23]} 11. h3 {[%clk 0:02:35]}  e6 {[%clk 0:01:54]} 12. Be3 {[%clk 0:01:25]}  Nxe4 {[%clk 0:01:37]} 13. Nxe4 {[%clk 0:01:24]}  d5 {[%clk 0:01:38]} 14. Bg5 {[%clk 0:01:13]}  Qc7 {[%clk 0:01:27]} 15. Nf6+ {[%clk 0:01:07]}  Bxf6 {[%clk 0:01:27]} 16. Bxf6 {[%clk 0:01:07]}  dxc4 {[%clk 0:01:27]} 17. Qd2 {[%clk 0:01:08]} 1-0


[Site "https://www.chess.com"]